bitfinex-derivatives/quotes_SOLF0:USTF0_20250818
["timestamp","ask_amount","ask_price","bid_price","bid_amount"]
[1755549394413,7.07388791,183.35,183.31,8.3624]
[1755549394629,3.15,183.36,183.27,2.91]
[1755549394926,3.92434337,183.35,183.28,5.4533]
[1755549395126,3.15,183.36,183.28,5.4533]
[1755549395326,3.92477469,183.35,183.28,5.4533]
[1755549395629,3.15,183.33,183.3,2.91]
[1755549395929,3.15,183.33,183.28,5.4534]
[1755549396122,3.15,183.33,183.29,2.91]
[1755549396918,3.15,183.31,183.27,5.4537]
[1755549397123,3.15,183.34,183.28,2.91]
[1755549397427,3.92692584,183.33,183.26,2.91]
[1755549397618,3.15,183.34,183.27,5.4536]
[1755549397820,3.92725115,183.33,183.27,5.4536]
[1755549398021,3.15,183.34,183.27,5.4536]
[1755549398224,3.15,183.32,183.29,2.91]
[1755549400531,3.15,183.3,183.26,2.91]
[1755549400728,3.15,183.3,183.22,3.8019199]
[1755549400935,3.15,183.3,183.27,2.91]
[1755549402636,53.15,183.34,183.28,2.91]
[1755549402829,3.93569774,183.33,183.28,2.91]
[1755549403025,3.15,183.31,183.26,5.454]
[1755549403335,7.08569774,183.3,183.26,8.364]
[1755549403635,7.08569774,183.3,183.26,2.91]
[1755549403636,3.15,183.3,183.26,2.91]
[1755549404041,3.93737456,183.29,183.23,2.91]
[1755549404236,3.15,183.33,183.24,2.91]
[1755549404237,7.08948152,183.28,183.24,2.91]
[1755549404536,3.15,183.31,183.21,2.91]
[1755549404738,3.93902255,183.3,183.23,5.4549]
[1755549404928,3.93902255,183.29,183.23,2.91]
[1755549405128,3.15,183.26,183.23,2.91]
[1755549405936,3.15,183.3,183.17,140.6519199]
[1755549406236,3.15,183.28,183.18,2.91]
[1755549406430,3.15,183.26,183.18,2.91]
[1755549406630,3.93854046,183.25,183.18,2.91]
[1755549406839,3.93854046,183.24,183.18,2.91]
[1755549407134,3.15,183.26,183.18,2.91]
[1755549407335,3.93751151,183.25,183.18,2.91]
[1755549407640,3.15,183.26,183.18,2.91]
[1755549407837,3.93586239,183.25,183.18,2.91]
[1755549408038,3.15,183.26,183.18,2.91]
[1755549408333,3.93591034,183.25,183.18,2.91]
[1755549408635,3.15,183.26,183.18,2.91]
[1755549408838,3.93465912,183.25,183.18,2.91]
[1755549409041,3.15,183.26,183.18,2.91]
[1755549409237,3.93465912,183.25,183.18,2.91]
[1755549409437,3.15,183.26,183.18,2.91]
[1755549409633,3.93307663,183.25,183.18,2.91]
[1755549409833,3.8019199,183.29,183.18,2.91]
[1755549409834,3.15,183.24,183.18,2.91]
[1755549413536,3.15,183.24,183.15,3.08]
[1755549413834,2.98,183.22,183.15,3.08]
[1755549414043,3.92895934,183.21,183.15,3.08]
[1755549414243,2.98,183.19,183.15,3.08]
[1755549416042,2.98,183.19,183.13,5.458]
[1755549416338,2.98,183.19,183.14,5.4577]
[1755549416542,2.98,183.19,183.16,3.08]
[1755549417139,2.98,183.26,183.12,3.08]
[1755549417342,2.98,183.24,183.12,3.08]
[1755549417645,2.98,183.22,183.14,5.4576]
[1755549418344,2.98,183.22,183.15,8.5373]
[1755549418545,2.98,183.22,183.15,3.08]
[1755549418842,2.98,183.22,183.12,6.8819199]
[1755549419044,2.98,183.22,183.13,3.08]
[1755549419446,2.98,183.22,183.16,5.457]
[1755549419750,2.98,183.22,183.16,8.537]
[1755549420140,53.8019199,183.25,183.13,3.08]
[1755549420342,53.8019199,183.25,183.07,133.66]
[1755549420343,50.0,183.25,183.16,3.08]
[1755549420743,50.0,183.25,183.18,5.4563]
[1755549420954,6.90300903,183.24,183.14,3.08]
[1755549421242,6.90300903,183.23,183.15,5.4572]
[1755549421450,2.98,183.23,183.14,3.08]
[1755549421839,2.98,183.23,183.17,3.08]
[1755549422633,50.0,183.24,183.18,8.5365]
[1755549422838,2.98,183.23,183.19,3.08]
[1755549423039,2.98,183.23,183.18,5.4565]
[1755549423241,52.98,183.24,183.2,3.08]
[1755549423647,2.98,183.24,183.2,3.08]
[1755549423847,2.98,183.24,183.21,3.08]
[1755549424052,2.98,183.27,183.21,3.08]
[1755549424243,3.921876,183.26,183.22,3.08]
[1755549424549,2.98,183.25,183.22,3.08]
[1755549424840,2.98,183.28,183.21,3.08]
[1755549425145,3.92188121,183.27,183.21,3.08]
[1755549425349,2.98,183.28,183.21,3.08]
[1755549425543,3.92242455,183.27,183.23,0.03899109]
[1755549425847,2.98,183.27,183.23,3.11899109]
[1755549427244,3.8019199,183.31,183.23,0.03899109]
[1755549427442,6.90294763,183.3,183.24,5.4547]
[1755549427642,3.92294763,183.29,183.25,3.08]
[1755549427848,2.98,183.29,183.26,3.08]
[1755549428444,2.98,183.28,183.22,3.08]
[1755549429251,2.98,183.28,183.24,3.08]
[1755549429450,2.98,183.32,183.21,3.8019199]
[1755549429644,7.72555772,183.31,183.21,9.2574199]
[1755549429849,2.98,183.29,183.21,9.2574199]
[1755549430049,2.98,183.29,183.22,3.08]
[1755549430749,3.92421324,183.28,183.22,3.08]
[1755549430950,3.8019199,183.31,183.22,3.08]
[1755549431149,2.98,183.25,183.22,3.08]
[1755549431750,3.8019199,183.31,183.23,3.08]
[1755549431947,2.98,183.25,183.21,5.4556]
[1755549432149,2.98,183.25,183.21,8.5356]
[1755549432747,2.98,183.3,183.18,3.8019199]
[1755549432947,2.98,183.27,183.17,3.08]
[1755549433150,3.92522693,183.26,183.18,3.8019199]
[1755549433352,2.98,183.28,183.19,3.08]
[1755549433848,2.98,183.28,183.21,5.4554]
[1755549434249,2.98,183.28,183.22,5.49283823]
[1755549434955,2.98,183.28,183.22,0.03753823]
[1755549435654,2.98,183.26,183.22,0.03753823]
[1755549435950,3.92723671,183.25,183.22,0.03753823]
[1755549436155,3.8019199,183.27,183.22,0.03753823]
[1755549436156,2.98,183.23,183.22,0.03753823]
[1755549438155,6.90863653,183.23,183.22,0.03753823]
[1755549438552,2.98,183.23,183.22,0.03753823]
[1755549439149,6.90919208,183.23,183.22,0.03753823]
[1755549443858,6.87919208,183.23,183.14,3.8019199]
[1755549444159,6.87919208,183.22,183.13,2.95]
[1755549444352,3.92919208,183.21,183.15,5.4572]
[1755549444552,3.92919208,183.21,183.15,2.95]
[1755549445156,0.04045735,183.2,183.15,2.95]
[1755549445356,0.04045735,183.2,183.17,2.95]
[1755549446267,2.99045735,183.2,183.17,2.95]
[1755549446964,2.95,183.19,183.14,8.4076]
[1755549447258,2.95,183.19,183.15,2.95]
[1755549447456,2.95,183.19,183.16,2.95]
[1755549447861,2.95,183.18,183.14,2.95]
[1755549448258,2.95,183.17,183.14,2.95]
[1755549450658,0.04045735,183.2,183.11,3.8019199]
[1755549450859,2.95,183.18,183.1,2.95]
[1755549451056,3.9438372,183.17,183.1,8.4087]
[1755549451256,3.9438372,183.16,183.1,8.4087]
[1755549451458,3.9438372,183.15,183.11,2.95]
[1755549451654,2.95,183.15,183.11,2.95]
[1755549452967,0.04022904,183.16,183.11,2.95]
[1755549453262,3.94205767,183.15,183.03,0.95032633]
[1755549453464,2.95,183.13,183.09,2.95]
[1755549453654,2.95,183.13,183.04,2.95]
[1755549453655,3.94125481,183.12,183.04,2.95]
[1755549453860,6.89147237,183.11,183.04,2.95]
[1755549454061,3.94147237,183.1,183.06,0.03585536]
[1755549454265,2.95,183.09,183.06,0.03585536]
[1755549454564,2.95,183.08,183.06,0.03585536]
[1755549455261,0.03851195,183.1,183.06,0.03585536]
[1755549455562,2.95,183.07,183.06,0.03585536]
[1755549458859,2.95,183.07,182.94,0.95076772]
[1755549459165,6.87862143,183.06,182.96,2.95]
[1755549459471,6.7519199,183.06,182.96,8.413]
[1755549459664,6.7519199,183.06,182.96,2.95]
[1755549459864,2.95,183.05,182.96,2.95]
[1755549460064,3.8019199,183.03,182.96,2.95]
[1755549460363,2.95,183.02,182.91,3.8019199]
[1755549460569,2.95,182.99,182.92,2.95]
[1755549460765,2.95,182.99,182.89,2.95]
[1755549461172,0.03912464,182.97,182.89,2.95]
[1755549461472,2.98912464,182.97,182.89,2.95]
[1755549462260,2.95,182.93,182.85,2.95]
[1755549462964,6.7519199,182.97,182.86,2.95]
[1755549463161,6.7519199,182.97,182.85,3.8019199]
[1755549463162,0.03524991,182.91,182.85,3.8019199]
[1755549463373,0.03524991,182.91,182.88,2.95]
[1755549463563,0.03524991,182.91,182.86,2.95]
[1755549463764,0.03524991,182.91,182.89,2.95]
[1755549463963,0.03524991,182.91,182.9,2.95]
[1755549464168,2.95,182.97,182.79,0.95166473]
[1755549464473,0.0395664,182.92,182.86,2.95]
[1755549464668,0.0395664,182.92,182.88,5.4652]
[1755549464973,0.0395664,182.92,182.89,2.95]
[1755549465163,0.0395664,182.92,182.79,0.95166473]
[1755549465360,0.0395664,182.92,182.84,2.95]
[1755549465567,2.95,182.93,182.84,2.95]
[1755549465973,0.03993485,182.9,182.84,2.95]
[1755549466166,2.98993485,182.9,182.84,2.95]
[1755549466367,2.98993485,182.9,182.8,2.95]
[1755549466571,2.95,182.88,182.78,9.2702199]
[1755549467176,0.03470924,182.85,182.79,5.4681]
[1755549467379,0.03470924,182.85,182.8,2.95]
[1755549467669,0.03470924,182.85,182.83,5.4667]
[1755549467874,0.03470924,182.85,182.84,2.95]
[1755549468068,0.03470924,182.85,182.82,2.95]
[1755549468270,0.03470924,182.85,182.72,0.95185996]
[1755549468574,53.8019199,182.93,182.72,0.95185996]
[1755549468575,6.7519199,182.86,182.74,2.95]
[1755549468760,2.95,182.86,182.78,8.4181]
[1755549468966,0.03742108,182.8,182.79,2.95]
[1755549469164,2.95,182.86,182.79,2.95]
[1755549469377,2.95,182.86,182.79,6.7519199]
[1755549469579,0.03834903,182.81,182.79,2.95]
[1755549469876,0.03834903,182.81,182.8,2.95]
[1755549470078,0.03834903,182.81,182.8,8.4178]
[1755549470278,0.03834903,182.81,182.77,3.8019199]
[1755549470279,0.03834903,182.81,182.78,2.95]
[1755549470769,0.03834903,182.81,182.75,2.95]
[1755549471171,0.03834903,182.81,182.77,5.4686]
[1755549471470,0.03834903,182.81,182.78,2.95]
[1755549471975,0.03834903,182.81,182.77,5.4686]
[1755549472279,3.11834903,182.81,182.77,3.14]
[1755549472474,0.03834903,182.81,182.79,3.14]
[1755549472776,0.03834903,182.81,182.8,8.6078]
[1755549473289,3.08,182.88,182.84,3.14]
[1755549473783,50.0,182.92,182.85,3.14]
[1755549473977,3.11526346,182.88,182.81,3.14]
[1755549474373,3.08,182.88,182.81,3.14]
[1755549474881,0.03870195,182.86,182.8,3.8019199]
[1755549475177,0.03870195,182.86,182.84,3.14]
[1755549475475,0.03870195,182.86,182.85,3.14]
[1755549475666,3.08,182.92,182.83,3.8019199]
[1755549475869,0.03967356,182.87,182.83,3.8019199]
[1755549476071,0.03967356,182.87,182.85,3.14]
[1755549476969,3.11967356,182.87,182.79,3.14]
[1755549477173,3.11967356,182.87,182.79,6.9419199]
[1755549477477,3.08,182.87,182.8,3.14]
[1755549477676,0.04159491,182.85,182.82,3.14]
[1755549479375,0.04159491,182.85,182.79,3.8019199]
[1755549479983,0.04159491,182.85,182.78,3.14]
[1755549481383,0.04159491,182.85,182.76,3.8019199]
[1755549481384,0.04159491,182.85,182.81,3.14]
[1755549481882,0.04159491,182.85,182.84,5.4666]
[1755549482078,0.04159491,182.85,182.84,8.6066]
[1755549482278,3.08,182.9,182.84,8.6066]
[1755549482476,3.08,182.9,182.85,5.4663]
[1755549482672,0.03868095,182.86,182.73,10.9397]
[1755549482881,0.03868095,182.86,182.79,6.9419199]
[1755549483080,3.08,182.92,182.83,3.14]
[1755549483476,0.04119678,182.84,182.83,3.14]
[1755549483783,3.08,182.92,182.83,3.14]
[1755549484187,0.04065019,182.85,182.84,3.14]
[1755549484385,0.04065019,182.85,182.84,8.6066]
[1755549484586,3.08,182.92,182.84,3.14]
[1755549484787,0.03958768,182.86,182.85,3.8019199]
[1755549485084,3.08,182.95,182.85,6.9419199]
[1755549485584,3.08,182.95,182.88,5.4654]
[1755549485779,3.08,182.95,182.85,6.9419199]
[1755549486172,3.08,182.95,182.73,378.3197]
[1755549486173,3.08,182.99,182.89,3.14]
[1755549486376,0.04072266,182.92,182.9,3.14]
[1755549486577,3.08,183.02,182.92,3.17479506]
[1755549486982,3.08,183.02,182.92,3.14]
[1755549487178,3.08,183.02,182.93,5.4639]
[1755549487385,3.08,183.0,182.92,3.14]
[1755549487574,3.08,183.04,182.97,5.4626]
[1755549487779,6.8819199,183.04,182.91,3.14]
[1755549487991,3.08,183.0,182.94,0.0349231]
[1755549488487,3.92457351,182.99,182.91,3.14]
[1755549488685,3.08,183.0,182.95,0.03462659]
[1755549488877,3.08,182.97,182.95,0.03462659]
[1755549489078,3.08,182.96,182.95,0.03462659]
[1755549489679,3.8019199,183.01,182.95,0.03462659]
[1755549489877,3.08,182.98,182.95,0.03462659]
[1755549490084,3.92551296,182.97,182.95,0.03462659]
[1755549490279,3.08,182.96,182.95,0.03462659]
[1755549490484,7.00866262,182.96,182.86,3.14]
[1755549490687,3.08,182.94,182.86,3.14]
[1755549491182,3.9311108,182.93,182.86,3.14]
[1755549491385,3.08,182.94,182.86,3.14]
[1755549491584,3.93176217,182.93,182.86,3.14]
[1755549491786,0.04208601,182.92,182.86,3.14]
[1755549493483,7.01830581,182.91,182.82,8.6072]
[1755549493690,3.93830581,182.9,182.82,3.14]
[1755549493892,3.08,182.91,182.82,3.14]
[1755549493893,3.93830581,182.89,182.82,3.14]
[1755549494084,3.08,182.91,182.82,3.14]
[1755549494287,0.03601267,182.88,182.82,3.14]
[1755549494683,0.03601267,182.88,182.83,5.4669]
[1755549494889,0.03601267,182.88,182.81,3.14]
[1755549495283,3.94576617,182.87,182.81,3.14]
[1755549495488,3.11601267,182.88,182.81,3.14]
[1755549495689,3.94576538,182.87,182.81,3.14]
[1755549495995,3.94573511,182.86,182.81,3.14]
[1755549496191,3.11601267,182.88,182.81,3.14]
[1755549496392,3.94934693,182.87,182.81,3.14]
[1755549496589,3.94934693,182.86,182.81,3.14]
[1755549496789,3.11601267,182.88,182.81,3.14]
[1755549496996,3.94934693,182.87,182.81,3.14]
[1755549497193,3.94934693,182.86,182.82,3.14]
[1755549497390,3.11601267,182.88,182.82,3.14]
[1755549497696,3.95144666,182.87,182.81,8.6075]
[1755549497992,3.95144666,182.86,182.82,3.14]
[1755549498191,7.03144666,182.85,182.77,3.14]
[1755549498494,3.95144666,182.84,182.77,3.14]
[1755549498696,3.95144666,182.83,182.78,3.8019199]
[1755549498900,3.98691222,182.82,182.8,3.14]
[1755549499097,0.03546556,182.82,182.75,3.8019199]
[1755549499302,3.95627346,182.81,182.75,3.8019199]
[1755549499606,3.99638329,182.8,182.76,3.14]
[1755549499797,0.04010983,182.8,182.76,3.14]
[1755549500303,0.04010983,182.8,182.77,3.14]
[1755549500902,3.95892771,182.79,182.77,8.6087]
[1755549501098,0.04010983,182.8,182.77,8.6087]
[1755549501403,3.90771741,182.79,182.71,6.9419199]
[1755549501711,3.12010983,182.8,182.71,6.9419199]
[1755549502002,3.90819933,182.79,182.71,6.9419199]
[1755549502303,3.90819933,182.78,182.71,3.14]
[1755549502498,3.12010983,182.8,182.71,3.14]
[1755549502803,3.06,182.78,182.68,5.4714]
[1755549502995,3.95275052,182.77,182.68,5.4714]
[1755549503191,3.91077033,182.76,182.67,6.9219199]
[1755549503392,3.91077033,182.75,182.67,6.9219199]
[1755549503692,3.06,182.78,182.68,3.8019199]
[1755549503897,0.03677239,182.73,182.68,9.2732199]
[1755549504200,3.09677239,182.73,182.65,3.8019199]
[1755549504391,3.09677239,182.73,182.64,3.12]
[1755549504596,3.09677239,182.73,182.66,5.4718]
[1755549505189,3.91153384,182.72,182.6,3.12]
[1755549505393,11.38126137,182.71,182.6,3.12]
[1755549505603,3.91153384,182.7,182.6,3.12]
[1755549505899,3.91153384,182.69,182.6,3.12]
[1755549506096,0.0415094,182.67,182.61,5.4733]
[1755549506298,0.0415094,182.67,182.6,3.12]
[1755549506693,0.0415094,182.67,182.62,5.4732]
[1755549506894,3.1015094,182.67,182.6,3.12]
[1755549507798,3.1015094,182.67,182.61,5.4735]
[1755549507998,3.1015094,182.67,182.6,3.12]
[1755549508191,0.0415094,182.67,182.53,0.9530069]
[1755549508396,3.06,182.65,182.53,4.0730069]
[1755549508604,3.8976216,182.64,182.53,3.12]
[1755549508998,0.04152119,182.61,182.53,3.12]
[1755549509502,0.04152119,182.61,182.55,5.4751]
[1755549509894,0.04152119,182.61,182.54,5.4754]
[1755549510095,0.04152119,182.61,182.53,3.12]
[1755549512098,0.04152119,182.61,182.53,8.5957]
[1755549512403,0.04152119,182.61,182.5,3.12]
[1755549512404,3.06,182.6,182.5,3.12]
[1755549512601,3.06,182.59,182.5,3.12]
[1755549513305,3.06,182.59,182.52,5.476]
[1755549514708,3.06,182.63,182.5,3.12]
[1755549515212,3.06,182.62,182.5,8.5966]
[1755549515402,3.06,182.6,182.5,3.12]
[1755549516113,3.06,182.6,182.51,5.4764]
[1755549517313,3.06,182.6,182.52,5.4762]
[1755549517909,3.06,182.6,182.5,3.12]
[1755549518413,3.06,182.6,182.53,3.12]
[1755549519008,3.06,182.65,182.54,5.4755]
[1755549519507,3.06,182.65,182.53,3.12]
[1755549519908,6.05595328,182.69,182.53,3.12]
[1755549520111,0.03797437,182.61,182.56,3.12]
[1755549520305,0.03797437,182.61,182.58,3.12]
[1755549520506,3.06,182.66,182.53,3.12]
[1755549520710,3.06,182.66,182.55,5.4753]
[1755549520910,0.04132543,182.61,182.55,5.4753]
[1755549521213,0.04132543,182.61,182.6,8.5938]
[1755549522211,0.04132543,182.61,182.45,3.12]
[1755549522513,0.04132543,182.61,182.5,3.12]
[1755549522715,3.06,182.62,182.5,3.12]
[1755549522918,0.04054845,182.57,182.5,3.12]
[1755549523214,0.04054845,182.57,182.55,5.4751]
[1755549523405,0.04054845,182.57,182.5,3.12]
[1755549523606,0.04054845,182.57,182.53,3.12]
[1755549523807,0.04054845,182.57,182.55,3.12]
[1755549524113,3.06,182.62,182.56,3.12]
[1755549524299,0.03886651,182.58,182.56,3.12]
[1755549524506,0.03886651,182.58,182.57,8.5947]
[1755549524805,0.03886651,182.58,182.57,3.12]
[1755549525716,0.03886651,182.58,182.56,8.5948]
[1755549526013,0.03886651,182.58,182.55,3.12]
[1755549526515,3.06,182.62,182.52,3.12]
[1755549526700,0.03638261,182.58,182.52,3.12]
[1755549527216,3.06,182.59,182.52,3.12]
[1755549527511,3.09799066,182.57,182.52,3.12]
[1755549527905,3.06,182.57,182.52,3.12]
[1755549528107,16.37,182.65,182.48,3.12]
[1755549528308,0.03782795,182.56,182.48,3.12]
[1755549528502,0.03782795,182.56,182.5,5.4766]
[1755549529007,0.03782795,182.56,182.48,3.12]
[1755549529215,0.03782795,182.56,182.48,8.5972]
[1755549529609,0.03782795,182.56,182.48,3.12]
[1755549529804,0.03782795,182.56,182.49,5.4769]
[1755549530008,0.03782795,182.56,182.48,3.12]
[1755549530710,0.03782795,182.56,182.45,6.05595328]
[1755549530711,3.06,182.55,182.43,7.00937794]
[1755549531019,3.06,182.55,182.42,3.12]
[1755549531211,3.06,182.54,182.42,3.12]
[1755549531412,0.04079317,182.5,182.42,3.12]
[1755549531713,3.10079317,182.5,182.42,3.12]
[1755549532017,3.06,182.48,182.36,5.481]
[1755549532714,0.03740754,182.44,182.37,5.4807]
[1755549533012,3.18740754,182.44,182.34,3.14]
[1755549534707,0.03740754,182.44,182.34,3.14]
[1755549534917,0.03740754,182.44,182.36,6.05595328]
[1755549535120,0.03740754,182.44,182.37,3.14]
[1755549535616,0.03740754,182.44,182.38,3.14]
[1755549536120,0.03740754,182.44,182.4,8.6196]
[1755549536322,0.03740754,182.44,182.4,3.14]
[1755549536510,3.15,182.52,182.4,5.4797]
[1755549536716,3.15,182.5,182.36,3.14]
[1755549536912,0.03878116,182.44,182.36,3.14]
[1755549537122,0.03878116,182.44,182.41,5.4793]
[1755549537313,0.03878116,182.44,182.36,3.14]
[1755549537721,0.03878116,182.44,182.39,6.05595328]
[1755549537922,0.03878116,182.44,182.4,3.14]
[1755549538127,0.03878116,182.44,182.43,5.4789]
[1755549539034,0.03878116,182.44,182.4,3.14]
[1755549540026,0.03878116,182.44,182.36,3.14]
[1755549540529,0.03878116,182.44,182.43,8.6189]
[1755549540925,3.15,182.5,182.46,5.4778]
[1755549541224,50.0,182.55,182.43,3.14]
[1755549541225,0.03539073,182.45,182.43,3.14]
[1755549541432,3.15,182.54,182.44,3.14]
[1755549542728,3.15,182.54,182.46,5.4778]
[1755549543331,3.87365273,182.53,182.44,3.14]
[1755549543524,3.15,182.54,182.44,3.14]
[1755549543923,3.15,182.52,182.39,6.05595328]
[1755549544227,3.87336314,182.51,182.4,3.14]
[1755549544420,3.87336314,182.5,182.4,3.14]
[1755549544622,3.87628943,182.49,182.4,8.6198]
[1755549544827,3.15,182.49,182.4,3.14]
[1755549545224,3.15,182.53,182.4,3.14]
[1755549545418,8.23448587,182.52,182.4,3.14]
[1755549545726,3.15,182.5,182.4,3.14]
[1755549545931,3.8799292,182.49,182.4,3.14]
[1755549546227,3.15,182.5,182.4,3.14]
[1755549546528,53.15,182.54,182.43,3.14]
[1755549546722,22.42595328,182.6,182.43,3.14]
[1755549546723,7.03464498,182.53,182.43,3.14]
[1755549547031,3.88452732,182.52,182.43,3.14]
[1755549547218,3.15,182.53,182.48,3.14]
[1755549547424,190.44,182.61,182.49,3.14]
[1755549547425,3.15,182.57,182.49,3.14]
[1755549547738,3.88941375,182.56,182.49,3.14]
[1755549547924,3.15,182.57,182.49,3.14]
[1755549548125,3.88864404,182.56,182.49,3.14]
[1755549548325,3.15,182.57,182.49,3.14]
[1755549548531,3.8923395,182.56,182.49,3.14]
[1755549548831,3.8923395,182.55,182.49,3.14]
[1755549549029,146.49685164,182.61,182.47,5.4775]
[1755549549030,3.15,182.53,182.47,5.4775]
[1755549549832,3.15,182.56,182.44,3.14]
[1755549550139,3.89552102,182.55,182.46,3.14]
[1755549550434,3.15,182.6,182.46,3.14]
[1755549550635,8.27491081,182.59,182.46,3.14]
[1755549550827,3.90004367,182.58,182.52,5.476]
[1755549551030,3.90004367,182.57,182.52,8.616]
[1755549551231,3.90004367,182.56,182.52,8.616]
[1755549551530,3.15,182.6,182.52,8.616]
[1755549551721,8.28079786,182.59,182.52,8.616]
[1755549552023,3.9020698,182.58,182.52,8.616]
[1755549552220,7.0520698,182.57,182.52,8.616]
[1755549552426,3.9020698,182.56,182.52,8.616]
[1755549552626,3.15,182.6,182.46,3.14]
[1755549552828,3.15,182.58,182.46,3.14]
[1755549553036,8.28231744,182.57,182.46,3.14]
[1755549553340,3.90282241,182.56,182.46,3.14]
[1755549553637,3.90282241,182.55,182.5,8.6166]
[1755549553846,3.90282241,182.54,182.5,8.6166]
[1755549554137,3.15,182.58,182.5,8.6166]
[1755549554328,8.29836578,182.57,182.5,5.4766]
[1755549554647,7.05260861,182.56,182.45,9.19595328]
[1755549554936,3.90260861,182.55,182.45,9.19595328]
[1755549555138,3.90260861,182.54,182.45,9.19595328]
[1755549555339,3.15,182.54,182.49,5.4769]
[1755549555529,3.15,182.54,182.49,8.6169]
[1755549555729,3.15,182.54,182.49,3.14]
[1755549556529,3.15,182.54,182.5,5.4768]
[1755549557331,3.15,182.54,182.49,8.617]
[1755549557839,3.15,182.54,182.49,3.14]
[1755549558041,3.15,182.58,182.46,3.14]
[1755549558239,3.90389321,182.57,182.46,3.14]
[1755549558437,3.90389321,182.56,182.46,3.14]
[1755549558739,3.15,182.58,182.48,6.05595328]
[1755549559042,3.15,182.58,182.49,3.14]
[1755549561446,3.15,182.58,182.52,5.476]
[1755549562145,3.15,182.58,182.49,3.14]
[1755549563347,3.15,182.58,182.52,5.476]
[1755549564636,3.15,182.58,182.51,5.4764]
[1755549565547,3.15,182.58,182.49,3.14]
[1755549566148,3.15,182.58,182.51,5.4765]
[1755549566640,3.15,182.58,182.49,3.14]
[1755549566946,3.15,182.58,182.5,5.4767]
[1755549567142,3.15,182.58,182.49,3.14]
[1755549567344,3.15,182.58,182.49,8.6169]
[1755549569247,3.15,182.58,182.49,3.14]
[1755549569946,53.18,182.61,182.5,3.1]
[1755549570244,53.18,182.61,182.53,5.4758]
[1755549570436,53.18,182.61,182.5,3.1]
[1755549570742,3.18,182.6,182.51,5.4765]
[1755549570944,3.18,182.6,182.5,3.1]
[1755549571443,3.18,182.6,182.52,5.4761]
[1755549572140,3.18,182.6,182.5,3.1]
[1755549572339,3.18,182.6,182.5,9.15595328]
[1755549572739,3.18,182.63,182.51,3.1]
[1755549573147,3.18,182.63,182.56,5.4749]
[1755549573547,3.18,182.63,182.54,3.1]
[1755549574943,3.18,182.63,182.56,5.4748]
[1755549575544,3.18,182.63,182.57,5.4747]
[1755549576745,50.0,182.64,182.56,3.1]
[1755549576953,140.4,182.65,182.59,3.1]
[1755549577147,3.18,182.69,182.62,3.1]
[1755549577453,3.18,182.69,182.65,5.4723]
[1755549577744,3.18,182.69,182.65,3.1]
[1755549577945,3.18,182.72,182.64,3.88603437]
[1755549578352,3.18,182.72,182.64,0.03932914]
[1755549578553,3.18,182.72,182.65,5.4723]
[1755549578847,3.18,182.72,182.64,0.03932914]
[1755549579039,3.18,182.72,182.64,3.13932914]
[1755549579846,3.18,182.72,182.65,5.4722]
[1755549580350,3.18,182.72,182.64,0.03932914]
[1755549580849,3.18,182.7,182.64,0.03932914]
[1755549584247,3.18,182.68,182.64,0.03932914]